bitfinex/quotes_BTCUSD_20240727
["timestamp","ask_amount","ask_price","bid_price","bid_amount"]
[1722111210999,1.62709314,67988.0,67987.0,7e-07]
[1722111211199,1.95953266,67988.0,67987.0,7e-07]
[1722111211421,2.00991529,67988.0,67987.0,7e-07]
[1722111211579,2.44575312,67988.0,67987.0,7e-07]
[1722111211742,2.15158412,67988.0,67987.0,7e-07]
[1722111211937,2.17469341,67988.0,67987.0,7e-07]
[1722111212166,2.13302458,67988.0,67987.0,0.2683007]
[1722111212397,2.13302458,67988.0,67981.0,7e-07]
[1722111212398,2.523877,67982.0,67981.0,7e-07]
[1722111212572,2.64067473,67982.0,67981.0,7e-07]
[1722111212754,0.147162,67952.0,67948.0,0.0823]
[1722111212952,1.90482024,67952.0,67949.0,0.0635]
[1722111213201,1.90482024,67952.0,67947.0,0.0001]
[1722111213202,1.40764166,67952.0,67951.0,0.3338]
[1722111213403,1.40764166,67952.0,67951.0,0.2703]
[1722111213404,0.46325929,67952.0,67951.0,0.2703]
[1722111213605,0.0015542,67968.0,67952.0,0.0823]
[1722111213806,0.9,67969.0,67968.0,0.2683]
[1722111214019,0.3,67987.0,67968.0,0.186]
[1722111214213,0.42824979,68004.0,67951.0,0.002]
[1722111214214,1.0,67970.0,67969.0,0.03627638]
[1722111214451,1.49797,67970.0,67969.0,0.0015542]
[1722111214669,0.9,67952.0,67951.0,0.1885]
[1722111214881,0.2,67952.0,67951.0,0.1885]
[1722111215062,0.7,67959.0,67952.0,0.0005]
[1722111215063,0.2,67957.0,67952.0,0.0005]
[1722111215265,0.2,67957.0,67953.0,0.0606]
[1722111215266,0.74509472,67954.0,67953.0,0.0606]
[1722111215572,0.2,67957.0,67953.0,0.0606]
[1722111216051,0.2,67957.0,67951.0,0.002]
[1722111216052,0.2,67957.0,67956.0,0.0612]
[1722111216228,0.7,67959.0,67956.0,0.03781044]
[1722111216428,0.2,67957.0,67956.0,0.0005]
[1722111216632,0.7,67959.0,67956.0,0.0005]
[1722111216837,0.2,67958.0,67956.0,0.0005]
[1722111218128,0.7,67959.0,67956.0,0.03336769]
[1722111218332,0.7,67959.0,67953.0,0.09812979]
[1722111218333,0.2,67958.0,67957.0,0.023]
[1722111218532,0.3,67955.0,67953.0,0.023]
[1722111218758,0.7,67952.0,67951.0,0.05427]
[1722111218935,0.37334166,67958.0,67951.0,0.05427]
[1722111219266,0.7,67959.0,67953.0,0.02927]
[1722111219469,0.7,67959.0,67952.0,0.03386769]
[1722111219470,0.3,67957.0,67955.0,0.02927]
[1722111219674,0.3,67957.0,67956.0,0.05227]
[1722111219898,0.7,67959.0,67956.0,0.05227]
[1722111220129,0.7,67970.0,67957.0,0.23052979]
[1722111220314,0.45077872,67969.0,67962.0,0.02927]
[1722111220505,0.7,67967.0,67965.0,0.0005]
[1722111220737,0.7,67967.0,67966.0,0.02927]
[1722111220962,0.2,67978.0,67967.0,0.0005]
[1722111221194,0.2,67968.0,67967.0,0.0005]
[1722111221421,0.7,67978.0,67968.0,0.07403148]
[1722111221657,0.7,67978.0,67969.0,0.0235]
[1722111221912,0.7,67978.0,67970.0,0.07403148]
[1722111222132,0.7,67978.0,67969.0,0.0640217]
[1722111222133,0.7,67978.0,67972.0,0.02927]
[1722111222339,0.45077872,67992.0,67971.0,0.023]
[1722111222340,0.7,67985.0,67975.0,0.0005]
[1722111222576,0.7,67985.0,67979.0,0.0005]
[1722111222969,0.7,67985.0,67980.0,0.02927]
[1722111223175,0.7,67985.0,67982.0,0.02927]
[1722111223572,0.7,67985.0,67984.0,0.02927]
[1722111223773,0.20084,67988.0,67984.0,0.05277]
[1722111224215,1.141273,67985.0,67984.0,0.02977]
[1722111224419,0.847091,67985.0,67984.0,0.0005]
[1722111224685,1.435455,67985.0,67984.0,0.0005]
[1722111224884,1.76916404,67985.0,67984.0,0.0005]
[1722111225093,1.76916404,67985.0,67968.0,0.03003]
[1722111225094,1.635627,67969.0,67968.0,0.03003]
[1722111225423,1.341376,67969.0,67968.0,0.03003]
[1722111225643,1.047125,67969.0,67968.0,0.03003]
[1722111226336,1.635627,67969.0,67968.0,0.03003]
[1722111226551,1.341376,67969.0,67968.0,0.03003]
[1722111226764,1.38247191,67969.0,67968.0,0.03003]
[1722111227217,1.67672291,67969.0,67968.0,0.03003]
[1722111227658,1.67672291,67969.0,67968.0,0.0005]
[1722111227876,1.67591727,67969.0,67968.0,0.0005]
[1722111228270,1.67591713,67969.0,67968.0,0.0005]
[1722111228418,0.7,67953.0,67952.0,0.000924]
[1722111228620,1.141481,67953.0,67952.0,0.000924]
[1722111228823,1.635802,67953.0,67952.0,0.000924]
[1722111229031,2.29217799,67953.0,67952.0,0.000924]
[1722111229414,2.26906369,67953.0,67952.0,0.000924]
[1722111229623,2.56338469,67953.0,67952.0,0.000924]
[1722111230314,2.56338469,67953.0,67928.0,0.03552687]
[1722111230315,1.347184,67942.0,67928.0,0.03552687]
[1722111230547,1.347184,67942.0,67924.0,0.0005]
[1722111230548,1.81619269,67942.0,67924.0,0.0005]
[1722111230782,1.81619269,67942.0,67921.0,0.002]
[1722111230783,2.371042,67932.0,67921.0,0.002]
[1722111231015,2.371042,67932.0,67931.0,1e-06]
[1722111231016,2.85568722,67932.0,67931.0,1e-06]
[1722111231251,2.85568722,67932.0,67921.0,1e-06]
[1722111231252,2.230592,67922.0,67921.0,1e-06]
[1722111231491,2.230592,67922.0,67862.0,0.01503663]
[1722111231492,1.347249,67912.0,67862.0,0.01503663]
[1722111231730,1.936332,67904.0,67903.0,0.007]
[1722111231958,2.92181009,67904.0,67903.0,0.007]
[1722111232377,2.231152,67885.0,67881.0,1e-06]
[1722111232624,1.01277488,67904.0,67862.0,0.01303663]
[1722111232625,1.936777,67863.0,67862.0,0.01303663]
[1722111232886,0.94751629,67863.0,67862.0,0.01303663]
[1722111233090,1.236777,67863.0,67862.0,0.01303663]
[1722111233295,1.236777,67863.0,67861.0,3.03e-05]
[1722111233296,0.642072,67862.0,67861.0,3.03e-05]
[1722111233512,1.50582385,67862.0,67861.0,0.0090854]
[1722111233715,1.82964277,67862.0,67861.0,0.0090854]
[1722111233919,1.75102337,67862.0,67861.0,0.0090854]
[1722111234340,2.19243837,67862.0,67861.0,0.0090854]
[1722111234542,2.32143462,67862.0,67861.0,0.0090854]
[1722111235182,1.48530462,67862.0,67861.0,0.0090854]
[1722111235387,1.406691,67862.0,67861.0,0.0090854]
[1722111235589,1.45630837,67862.0,67861.0,0.0090854]
[1722111235796,0.57334166,67862.0,67861.0,0.0090854]
[1722111235999,1.01541366,67862.0,67861.0,0.0090854]
[1722111236202,0.57334166,67862.0,67861.0,0.0090854]
[1722111236418,0.59649024,67862.0,67861.0,0.0090854]
[1722111236625,0.57334166,67862.0,67861.0,0.0090854]
[1722111236783,0.2,67862.0,67861.0,0.0090854]
[1722111237150,0.7,67864.0,67861.0,0.0090854]
[1722111237151,0.45077872,67909.0,67884.0,0.02953]
[1722111237398,0.45077872,67909.0,67861.0,0.02905201]
[1722111237399,0.147267,67904.0,67902.0,0.03003]
[1722111237758,0.147267,67904.0,67885.0,0.11883624]
[1722111237759,0.641916,67886.0,67885.0,0.0015542]
[1722111238002,0.641916,67886.0,67858.0,0.13524606]
[1722111238003,0.2,67859.0,67858.0,0.13524606]
[1722111238204,0.7,67862.0,67858.0,0.13524606]
[1722111238205,0.1379542,67861.0,67858.0,0.13524606]
[1722111238408,0.347364,67859.0,67858.0,0.13524606]
[1722111238758,1.078892,67859.0,67858.0,0.13524606]
[1722111238960,1.668348,67859.0,67858.0,0.13524606]
[1722111239293,1.37362,67859.0,67858.0,0.13524606]
[1722111239494,0.848964,67859.0,67858.0,0.13524606]
[1722111239724,1.143692,67859.0,67858.0,0.13524606]
[1722111239983,2.17517834,67859.0,67858.0,0.13524606]
[1722111240239,2.17517834,67859.0,67814.0,0.07512979]
[1722111240240,1.576702,67842.0,67831.0,0.002]
[1722111240494,0.30725612,67859.0,67784.0,0.0774]
[1722111240495,0.9,67822.0,67821.0,0.00120602]
[1722111240964,0.7,67833.0,67820.0,0.23360602]
[1722111241202,0.7,67838.0,67820.0,0.23360602]
[1722111241437,0.1368,67841.0,67820.0,0.04860602]
[1722111241438,0.7,67821.0,67820.0,0.04860602]
[1722111241900,0.7,67830.0,67820.0,0.23360602]
[1722111242151,0.9,67838.0,67824.0,0.02953]
[1722111242396,0.2,67831.0,67824.0,0.02953]
[1722111242599,0.7,67827.0,67824.0,0.02953]
[1722111242823,0.0015542,67826.0,67824.0,0.02953]
[1722111243049,0.0015542,67826.0,67820.0,0.04860602]
[1722111243050,0.0015542,67826.0,67821.0,0.02953]
[1722111243285,0.0015542,67826.0,67820.0,0.04860602]
[1722111243286,0.0015542,67826.0,67825.0,0.10465979]
[1722111243516,0.37334166,67846.0,67825.0,0.10465979]
[1722111243517,0.66812966,67846.0,67825.0,0.10465979]
[1722111244009,0.45077872,67845.0,67836.0,0.10465979]
[1722111244222,0.45077872,67845.0,67844.0,0.10465979]
[1722111244223,0.059129,67845.0,67844.0,0.10465979]
[1722111244435,0.37334166,67865.0,67844.0,0.10465979]
[1722111244653,0.37334166,67865.0,67852.0,0.05503]
[1722111244865,0.37334166,67865.0,67861.0,0.02953]
[1722111245065,0.059114,67864.0,67863.0,0.02953]
[1722111245240,0.059114,67864.0,67863.0,0.05253]
[1722111245452,0.2,67877.0,67863.0,0.02953]
[1722111245453,0.45077872,67871.0,67863.0,0.02953]
[1722111245660,0.7,67868.0,67863.0,0.02953]
[1722111246024,0.05253,67871.0,67864.0,0.02953]
[1722111246231,0.05253,67871.0,67864.0,0.05253]
[1722111246448,0.37334166,67885.0,67869.0,0.02953]
[1722111246654,0.0083,67913.0,67885.0,0.02953]
[1722111246655,0.7,67901.0,67885.0,0.02953]
[1722111247222,0.355548,67913.0,67892.0,0.02953]
[1722111247223,0.45077872,67910.0,67892.0,0.02953]
[1722111247401,0.45077872,67910.0,67886.0,0.023]
[1722111247402,0.059084,67902.0,67898.0,0.02953]
[1722111247637,0.059084,67902.0,67877.0,0.02938427]
[1722111247638,0.441969,67878.0,67877.0,0.02938427]
[1722111247812,0.7,67868.0,67858.0,0.0255]
[1722111248016,0.3,67877.0,67858.0,0.0255]
[1722111248017,0.0015542,67875.0,67859.0,0.07512979]
[1722111248225,0.45077872,67894.0,67874.0,0.07512979]
[1722111248462,0.45077872,67894.0,67860.0,0.01006298]
[1722111248463,0.45077872,67876.0,67875.0,0.0255]
[1722111248586,0.0015542,67876.0,67867.0,0.02953]
[1722111249285,0.147339,67871.0,67869.0,0.02953]
[1722111249486,0.147339,67871.0,67868.0,0.023]
[1722111249487,0.02313813,67874.0,67870.0,0.05253]
[1722111249769,0.0015542,67873.0,67872.0,0.02953]
[1722111249979,0.02313813,67874.0,67872.0,0.038633]
[1722111250171,0.02313813,67874.0,67873.0,0.05253]
[1722111251212,0.45077872,67894.0,67884.0,0.02953]
[1722111251402,0.45077872,67894.0,67884.0,0.10465979]
[1722111251611,0.45077872,67894.0,67884.0,0.02953]
[1722111252323,0.45077872,67894.0,67874.0,0.03708619]
[1722111252324,0.441988,67875.0,67874.0,0.03708619]
[1722111252527,0.7,67883.0,67856.0,0.0255]
[1722111252671,0.7,67883.0,67852.0,0.00973]
[1722111252672,0.07512979,67880.0,67852.0,0.00973]
[1722111252871,0.07512979,67880.0,67841.0,0.0255]
[1722111252872,0.442203,67842.0,67841.0,0.0255]
[1722111253072,0.7,67853.0,67841.0,0.0255]
[1722111253312,0.147401,67842.0,67841.0,0.0255]
[1722111253685,0.294759,67852.0,67841.0,0.0255]
[1722111254035,0.7,67853.0,67841.0,0.0255]
[1722111254239,0.2,67869.0,67802.0,0.3113336]
[1722111254240,0.147444,67822.0,67821.0,0.0255]
[1722111254393,0.7,67837.0,67813.0,0.0255]
[1722111254596,0.147437,67826.0,67813.0,0.0255]
[1722111254799,0.7,67837.0,67813.0,0.0255]
[1722111254997,0.294893,67821.0,67811.0,0.01]
[1722111255232,0.07512979,67826.0,67811.0,0.01]
[1722111255434,0.737232,67821.0,67811.0,0.01]
[1722111255637,0.37334166,67826.0,67811.0,0.01]
[1722111255837,0.5,67841.0,67811.0,0.01]
[1722111255838,0.288946,67821.0,67811.0,0.01]
[1722111256038,1.54696666,67821.0,67811.0,0.01]
[1722111256214,1.89086419,67821.0,67811.0,0.01]
[1722111256597,1.968698,67812.0,67811.0,0.01]
[1722111256797,3.62317719,67812.0,67811.0,0.01]
[1722111257074,3.70569011,67812.0,67811.0,0.01]
[1722111257273,3.70569011,67812.0,67811.0,1e-06]
[1722111257574,4.00062311,67812.0,67811.0,1e-06]
[1722111257710,3.40569011,67812.0,67811.0,1e-06]
[1722111257930,2.41075711,67812.0,67811.0,1e-06]
[1722111258179,1.58791636,67812.0,67811.0,1e-06]
[1722111258380,1.5095077,67812.0,67811.0,1e-06]
[1722111258551,2.15461119,67812.0,67811.0,1e-06]
[1722111259004,2.232402,67803.0,67802.0,0.0163596]
[1722111259215,2.50494498,67803.0,67802.0,0.0163596]
[1722111259390,2.81481049,67803.0,67802.0,0.0163596]
[1722111259719,1.40894617,67803.0,67802.0,0.0163596]
[1722111259921,1.39405266,67803.0,67802.0,0.0163596]
[1722111260142,1.68902466,67803.0,67802.0,0.0163596]
[1722111260344,1.7039199,67803.0,67802.0,0.0163596]
[1722111260569,0.05159466,67803.0,67802.0,0.0163596]
[1722111261140,0.147456,67817.0,67802.0,0.0163596]
[1722111261368,0.05158087,67816.0,67809.0,0.1549]
[1722111261559,0.01530663,67838.0,67818.0,0.0264]
[1722111261729,0.05158782,67837.0,67830.0,0.23002979]
[1722111261940,0.7,67847.0,67830.0,0.23002979]
[1722111262116,0.45077872,67856.0,67845.0,0.02953]
[1722111262321,0.7,67854.0,67847.0,0.02953]
[1722111262522,0.7,67841.0,67831.0,0.023]
[1722111262755,0.7,67841.0,67832.0,0.01681505]
[1722111262756,0.0015542,67840.0,67832.0,0.01681505]
[1722111262959,0.7,67851.0,67833.0,0.023]
[1722111263231,0.37334166,67874.0,67831.0,0.023]
[1722111263232,0.7,67866.0,67842.0,0.05593]
[1722111263507,0.7,67866.0,67855.0,0.18443]
[1722111263508,0.45077872,67856.0,67855.0,0.18443]
[1722111263713,0.294657,67876.0,67843.0,0.01310598]
[1722111263714,0.7,67875.0,67857.0,0.18443]
[1722111263907,0.0503696,67872.0,67857.0,0.202873]
[1722111264137,0.147324,67878.0,67843.0,0.03610598]
[1722111264138,0.7,67870.0,67859.0,0.18443]
[1722111264291,0.07710663,67889.0,67861.0,0.02953]
[1722111264292,1.142072,67862.0,67861.0,0.02953]
[1722111264497,0.97285341,67862.0,67861.0,0.02953]
[1722111264789,0.75036662,67862.0,67861.0,0.02953]
[1722111264987,1.142072,67862.0,67861.0,0.02953]
[1722111265193,1.71423325,67862.0,67861.0,0.02953]
[1722111265400,1.71423325,67862.0,67842.0,0.0264]
[1722111265401,0.7,67850.0,67842.0,0.0264]
[1722111265611,0.07512979,67863.0,67834.0,0.02953]
[1722111265612,0.7,67842.0,67834.0,0.02953]
[1722111265824,0.294742,67856.0,67839.0,0.18443]
[1722111265825,0.0015542,67841.0,67839.0,0.18443]
[1722111266241,0.0015542,67841.0,67829.0,0.0255]
[1722111266242,0.0015542,67841.0,67840.0,0.18443]
[1722111266464,0.0015542,67851.0,67840.0,0.02953]
[1722111266865,0.294776,67848.0,67840.0,0.02953]
[1722111267074,0.0015542,67847.0,67840.0,0.02953]
[1722111267318,0.0015542,67847.0,67841.0,0.02953]
[1722111267319,0.05132345,67847.0,67841.0,0.02953]
[1722111267522,0.7,67845.0,67841.0,0.02953]
[1722111267735,0.0015542,67844.0,67841.0,0.02953]
[1722111267985,0.0015542,67844.0,67843.0,0.02953]
[1722111268213,0.0015542,67844.0,67843.0,0.05253]
[1722111268955,0.02470528,67844.0,67843.0,0.20743]
[1722111269188,0.7,67859.0,67843.0,0.20743]
[1722111269393,0.05017295,67858.0,67845.0,0.18443]
[1722111269610,0.02313532,67861.0,67849.0,0.18443]
[1722111269821,0.02313532,67861.0,67848.0,0.0255]
[1722111269822,0.45077872,67860.0,67851.0,0.18443]
[1722111270122,0.45077872,67860.0,67848.0,0.0255]
[1722111270123,0.0015542,67859.0,67853.0,0.18443]
[1722111270466,0.02313532,67861.0,67853.0,0.18443]
[1722111270607,0.0015542,67860.0,67855.0,0.18443]
[1722111270817,0.02313532,67861.0,67855.0,0.18443]
[1722111271055,0.0015542,67860.0,67857.0,0.02953]
[1722111271248,0.0015542,67860.0,67859.0,0.02953]
[1722111271449,0.0015542,67860.0,67859.0,0.18443]
[1722111271651,0.02313532,67861.0,67859.0,0.20743]
[1722111271850,0.2,67894.0,67859.0,0.20743]
[1722111271851,0.7,67870.0,67861.0,0.02953]
[1722111272063,0.7,67870.0,67862.0,0.023]
[1722111272266,0.7,67870.0,67863.0,0.02953]
[1722111272515,0.02312946,67873.0,67863.0,0.02953]
[1722111272662,0.02312946,67873.0,67865.0,0.02953]
[1722111272885,0.02312946,67873.0,67867.0,0.02953]
[1722111273039,0.02312946,67873.0,67850.0,0.1]
[1722111273040,0.02312946,67873.0,67871.0,0.18443]
[1722111273275,0.7,67882.0,67868.0,0.023]
[1722111273276,0.7,67890.0,67872.0,0.20743]
[1722111273516,0.7,67890.0,67868.0,0.023]
[1722111273517,0.08770463,67889.0,67874.0,0.18443]
[1722111273718,0.02312553,67885.0,67874.0,0.18443]
[1722111274145,0.02312553,67885.0,67873.0,0.0264]
[1722111274146,0.02312553,67885.0,67875.0,0.044083]
[1722111274341,0.04247285,67920.0,67882.0,0.18443]
[1722111274553,0.45077872,67917.0,67897.0,0.18443]
[1722111274762,0.294519,67908.0,67898.0,0.023]
[1722111274960,0.294519,67908.0,67883.0,0.11626385]
[1722111274961,0.147263,67906.0,67883.0,0.0039]
[1722111275167,0.147263,67906.0,67872.0,0.1]
[1722111275168,0.0492607,67905.0,67872.0,0.1]
[1722111275369,0.0015542,67904.0,67896.0,0.07512979]
[1722111275593,0.45077872,67915.0,67898.0,0.0255]
[1722111276019,0.147243,67915.0,67898.0,0.0255]
[1722111276245,0.07512979,67912.0,67898.0,0.0255]
[1722111276632,0.147259,67908.0,67898.0,0.0255]
[1722111276809,0.29452,67907.0,67898.0,0.0255]
[1722111276982,0.0015542,67901.0,67898.0,0.0255]
[1722111277190,0.736387,67899.0,67898.0,0.0255]
[1722111277408,0.736387,67899.0,67849.0,0.36989979]
[1722111277409,0.7,67895.0,67878.0,0.02953]
[1722111277596,0.441981,67876.0,67875.0,0.0255]
[1722111277795,0.147357,67862.0,67861.0,0.0255]
[1722111278268,0.147366,67858.0,67842.0,0.0255]
[1722111278434,0.07512979,67871.0,67843.0,0.02953]
[1722111278655,0.147373,67855.0,67843.0,0.02953]
[1722111278870,0.994633,67881.0,67846.0,0.02953]
[1722111279074,0.09952709,67891.0,67867.0,0.07512979]
[1722111279075,0.00049999,67880.0,67867.0,0.07512979]
[1722111279282,0.45077872,67893.0,67862.0,0.1539]
[1722111279489,0.45077872,67893.0,67865.0,0.18343]
[1722111279710,0.02312465,67903.0,67865.0,0.18343]
[1722111279711,0.02312465,67903.0,67878.0,0.10465979]
[1722111279910,0.45077872,67892.0,67878.0,0.02953]
[1722111280189,0.7,67908.0,67880.0,0.02953]
[1722111280190,0.07512979,67907.0,67880.0,0.02953]
[1722111280407,0.45077872,67907.0,67884.0,0.18443]
[1722111280588,0.45077872,67913.0,67886.0,0.02953]
[1722111280830,0.45077872,67915.0,67896.0,0.02953]
[1722111281010,0.45077872,67915.0,67898.0,0.02953]
[1722111281214,0.059073,67919.0,67900.0,0.02953]
[1722111281435,0.7,67923.0,67900.0,0.02953]
[1722111281652,0.02953,67920.0,67902.0,0.02953]
[1722111281912,0.02312725,67915.0,67904.0,0.02953]
[1722111282154,0.02312725,67915.0,67906.0,0.02953]
[1722111282583,0.02312725,67915.0,67908.0,0.02953]
[1722111282803,0.02312725,67915.0,67909.0,0.09363706]
[1722111283044,0.07412979,67913.0,67902.0,0.03875925]
[1722111283265,0.77512979,67922.0,67903.0,0.023]
[1722111283266,0.07512979,67912.0,67903.0,0.023]
[1722111283532,0.07512979,67912.0,67904.0,0.04354258]
[1722111283717,0.07512979,67912.0,67905.0,0.023]
[1722111283868,0.0015542,67910.0,67895.0,0.0255]
[1722111284054,0.294513,67909.0,67896.0,0.023]
[1722111284260,0.07168399,67912.0,67895.0,0.0255]
[1722111284671,0.07512979,67905.0,67893.0,0.1549]
[1722111284874,0.07512979,67905.0,67887.0,0.02953]
[1722111284875,0.147297,67890.0,67887.0,0.02953]
[1722111285077,0.7,67902.0,67887.0,0.02953]
[1722111285321,0.07512979,67898.0,67887.0,0.02953]
[1722111285540,0.294565,67897.0,67887.0,0.02953]
[1722111285740,0.7,67902.0,67889.0,0.02953]
[1722111285939,0.7,67902.0,67886.0,0.0255]
[1722111285940,0.07512979,67897.0,67891.0,0.02953]
[1722111286168,0.294569,67896.0,67891.0,0.02953]
[1722111286342,0.07512979,67897.0,67891.0,0.02953]
[1722111286521,0.147292,67892.0,67891.0,0.02953]
[1722111286984,0.02313413,67896.0,67888.0,0.02953]
[1722111287105,0.77512979,67890.0,67888.0,0.02953]
[1722111287305,0.19678015,67889.0,67888.0,0.02953]
[1722111287703,0.441897,67889.0,67888.0,0.02953]
[1722111287960,0.147306,67886.0,67878.0,0.1549]
[1722111288189,0.77512979,67890.0,67878.0,0.1549]
[1722111288400,0.06364379,67910.0,67863.0,0.00875531]
[1722111288401,0.45077872,67883.0,67880.0,0.1549]
[1722111288554,0.00084,67897.0,67881.0,0.0015542]
[1722111288555,0.04905054,67882.0,67881.0,0.0015542]
[1722111288754,0.14729,67893.0,67881.0,0.0015542]
[1722111288981,0.04905021,67892.0,67881.0,0.0015542]
[1722111289182,0.147285,67896.0,67868.0,0.1549]
[1722111289393,0.04896852,67895.0,67877.0,0.1549]
[1722111289588,0.00084,67897.0,67879.0,0.1549]
[1722111289804,0.00084,67897.0,67881.0,0.1549]
[1722111289965,0.00084,67897.0,67883.0,0.1549]
[1722111290166,0.00084,67897.0,67885.0,0.1549]
[1722111290446,0.00084,67897.0,67887.0,0.1549]
[1722111290656,0.00084,67897.0,67890.0,0.1549]
[1722111290657,0.02313226,67895.0,67890.0,0.1549]
[1722111290864,0.02313226,67895.0,67892.0,0.1549]
[1722111291094,0.45277872,67929.0,67903.0,0.1549]
[1722111291296,0.45077872,67911.0,67905.0,0.1549]
[1722111291497,0.45277872,67929.0,67905.0,0.1549]
[1722111291669,0.0848933,67928.0,67907.0,0.1549]
[1722111291907,0.0848933,67927.0,67909.0,0.1549]
[1722111292116,0.04828272,67926.0,67911.0,0.1549]
[1722111292311,0.04828272,67926.0,67910.0,0.023]
[1722111292312,0.04828272,67925.0,67913.0,0.1549]
[1722111292520,0.002,67929.0,67915.0,0.1549]
[1722111292670,0.04707709,67928.0,67915.0,0.1549]
[1722111292875,0.04557709,67928.0,67915.0,0.1549]
[1722111293083,0.04557709,67928.0,67917.0,0.1549]
[1722111293280,0.04557709,67928.0,67919.0,0.1549]
[1722111293281,0.03505694,67927.0,67919.0,0.1549]
[1722111293662,0.002,67929.0,67904.0,0.1255]
[1722111293663,0.002,67929.0,67923.0,0.1549]
[1722111293888,0.07512979,67928.0,67925.0,0.1549]
[1722111294063,0.07512979,67928.0,67926.0,0.023]
[1722111294270,0.07512979,67928.0,67927.0,0.1549]
[1722111294677,0.22234379,67928.0,67927.0,0.023]
[1722111294892,0.10760214,67928.0,67924.0,0.1549]
[1722111295096,0.07512979,67928.0,67925.0,0.023]
[1722111295295,0.03206293,67927.0,67925.0,0.023]
[1722111295913,0.147228,67922.0,67915.0,0.1549]
[1722111296295,1.06955979,67928.0,67916.0,0.1549]
[1722111296517,0.07512979,67919.0,67904.0,0.00875448]
[1722111296731,0.03229337,67918.0,67904.0,0.00875448]
[1722111296905,0.03229337,67917.0,67903.0,0.1549]
[1722111297115,0.03229337,67916.0,67903.0,0.1549]
[1722111297258,0.45077872,67927.0,67903.0,0.1549]
[1722111297259,0.147226,67923.0,67903.0,0.1549]
[1722111297461,0.07512979,67921.0,67903.0,0.1549]
[1722111297667,0.03145547,67920.0,67905.0,0.1549]
[1722111297876,0.03145547,67920.0,67907.0,0.1549]
[1722111298055,0.147219,67926.0,67908.0,0.02449998]
[1722111298260,0.03183296,67925.0,67910.0,0.02953]
[1722111298475,0.03183296,67924.0,67918.0,0.18443]
[1722111298708,0.03183296,67923.0,67920.0,0.02953]
[1722111298910,0.17905996,67922.0,67921.0,0.00149998]
[1722111299123,0.03183296,67922.0,67920.0,0.02953]
[1722111299361,0.147224,67924.0,67921.0,0.00149998]
[1722111299599,0.17852337,67923.0,67921.0,0.03102998]
[1722111299805,0.17852537,67922.0,67921.0,0.02953]
[1722111300232,0.03129837,67922.0,67921.0,0.02953]
[1722111300471,0.32575337,67922.0,67921.0,0.02953]
[1722111300753,0.32575337,67922.0,67908.0,0.023]
[1722111300754,0.294461,67921.0,67912.0,0.1549]
[1722111300989,0.294461,67921.0,67908.0,0.023]
[1722111300990,0.07512979,67917.0,67913.0,0.1779]
[1722111301290,0.07512979,67917.0,67902.0,0.00860768]
[1722111301291,0.147268,67903.0,67902.0,0.00860768]
[1722111301462,0.294581,67893.0,67873.0,0.0255]
[1722111301664,0.294581,67893.0,67877.0,0.45077872]
[1722111301665,0.147306,67886.0,67877.0,0.45077872]
[1722111301878,0.07512979,67893.0,67873.0,0.0255]
[1722111301879,0.07512979,67884.0,67873.0,0.0255]
[1722111302080,0.294598,67889.0,67865.0,0.09987286]
[1722111302081,0.294637,67880.0,67865.0,0.09987286]
[1722111302282,0.294598,67889.0,67867.0,0.1549]
[1722111302283,0.147326,67877.0,67867.0,0.1549]
[1722111302479,0.07771883,67876.0,67867.0,0.1549]
[1722111302744,0.22504883,67875.0,67867.0,0.1549]
[1722111302952,0.07771883,67874.0,67867.0,0.1549]
[1722111303115,1.0,67879.0,67867.0,0.1549]
[1722111303116,0.147341,67870.0,67867.0,0.1549]
[1722111303299,0.147344,67868.0,67867.0,0.1549]
[1722111303501,0.147344,67868.0,67845.0,0.0255]
[1722111303502,0.147355,67864.0,67845.0,0.0255]
[1722111303705,0.07772951,67868.0,67844.0,0.000924]
[1722111303706,0.07512979,67850.0,67844.0,0.000924]
[1722111303994,0.0767,67862.0,67845.0,0.45077872]
[1722111303995,0.1565566,67849.0,67845.0,0.45077872]
[1722111304236,0.04237302,67879.0,67844.0,0.000924]
[1722111304237,0.07772951,67848.0,67844.0,0.000924]
[1722111304477,0.45077872,67873.0,67844.0,0.000924]
[1722111304647,0.0231454,67849.0,67845.0,0.0187824]
[1722111304851,0.147329,67875.0,67845.0,0.0187824]
[1722111304852,0.45077872,67875.0,67846.0,0.0015542]
[1722111305059,0.14438136,67874.0,67846.0,0.0015542]
[1722111305262,0.45077872,67875.0,67856.0,0.0015542]
[1722111305263,0.06586102,67873.0,67856.0,0.0015542]
[1722111305470,0.07512979,67860.0,67856.0,0.0015542]
[1722111305692,0.07512979,67874.0,67856.0,0.0015542]
[1722111305693,0.147366,67858.0,67856.0,0.0015542]
[1722111305902,0.147377,67854.0,67844.0,0.000924]
[1722111306099,0.147394,67845.0,67844.0,0.000924]
[1722111306347,0.21302353,67845.0,67844.0,0.000924]
[1722111306524,1.22195539,67845.0,67844.0,0.000924]
[1722111306721,1.07759579,67845.0,67844.0,0.000924]
[1722111306948,1.20260921,67845.0,67844.0,0.000924]
[1722111307201,1.20260921,67845.0,67809.0,0.0255]
[1722111307202,0.876205,67842.0,67809.0,0.0255]
[1722111307392,1.45806455,67842.0,67818.0,0.00886223]
[1722111307595,1.88904988,67842.0,67841.0,0.00067628]
[1722111307802,1.88904988,67842.0,67801.0,0.085]
[1722111307803,1.17128,67824.0,67801.0,0.085]
[1722111307916,1.63763966,67824.0,67823.0,0.0102293]
[1722111308120,0.72963109,67824.0,67823.0,0.0102293]
[1722111308339,0.18549497,67824.0,67823.0,0.0102293]
[1722111308542,0.18637342,67824.0,67823.0,0.0102293]
[1722111308748,0.294833,67835.0,67823.0,0.0102293]
[1722111308749,0.37334166,67837.0,67823.0,0.0102293]
[1722111308957,0.04717028,67836.0,67824.0,0.07512979]
[1722111309159,0.04583479,67845.0,67831.0,0.07512979]
[1722111309458,0.04583479,67845.0,67832.0,0.0500542]